Workbook

Sheet 凭证记录表
A1: 凭证记录表
A2: 凭证号 | B2: 代码 | C2: 科目名称 | D2: 单位代码 | E2: 单位 | F2: 借方 | G2: 贷方 | H2: 摘要 | I2: 日期 | J2: 一级名称 | K2: 二级名称 | L2: 金额
A3: N001 | B3: B550201 | C3: 管理费用/办公费 | D3: R01 | E3: 库贷 | F3: 100 | H3: 办公费 | I3: 2007-08-01 | J3: 管理费用 | K3: 办公费 | L3: -100
A4: N001 | B4: B100201 | C4: 银行存款/人民币 | D4: R02 | E4: 中国银行 | G4: 100 | H4: 人民币 | I4: 2007-08-02 | J4: 银行存款 | K4: 人民币/中国银行 | L4: 100
A5: N002 | B5: B550202 | C5: 管理费用/邮寄费 | D5: 无代码 | F5: 300 | H5: 邮寄费 | I5: 2007-08-04 | J5: 管理费用 | K5: 邮寄费 | L5: -300
A6: N002 | B6: B100101 | C6: 现金/人民币 | D6: 无代码 | G6: 300 | H6: 人民币 | I6: 2007-08-06 | J6: 现金 | K6: 人民币 | L6: 300
A7: N003 | B7: B410501 | C7: 制造费用/折旧费 | D7: R01 | E7: 库贷 | F7: 220 | H7: 折旧费 | I7: 2007-08-10 | J7: 制造费用 | K7: 折旧费 | L7: -220
A8: N003 | B8: B100101 | C8: 现金/人民币 | D8: 无代码 | G8: 220 | H8: 人民币 | I8: 2007-08-11 | J8: 现金 | K8: 人民币 | L8: 220
A9: N004 | B9: B100204 | C9: 银行存款/人民币 | D9: R03 | E9: 工商银行 | F9: 1500 | H9: 人民币 | I9: 2007-08-12 | J9: 银行存款 | K9: 人民币/工商银行 | L9: -1500
A10: N004 | B10: B212101 | C10: 应付账款/A企业 | D10: R05 | E10: A企业 | G10: 1500 | H10: A企业 | I10: 2007-08-13 | J10: 应收账款 | K10: A企业 | L10: 1500
A11: N005 | B11: B212102 | C11: 应付账款/C企业 | D11: R04 | E11: C企业 | F11: 2000 | H11: C企业 | I11: 2007-08-14 | J11: 应付账款 | K11: C企业 | L11: -2000
A12: N005 | B12: B100203 | C12: 银行存款/人民币 | D12: R02 | E12: 农业银行 | G12: 2000 | H12: 人民币 | I12: 2007-08-15 | J12: 银行存款 | K12: 人民币/农业银行 | L12: 2000
A13: N006 | B13: B550204 | C13: 管理费用/水电费 | D13: R01 | E13: 库贷 | F13: 500 | H13: 水电费 | I13: 2007-08-19 | J13: 管理费用 | K13: 水电费 | L13: -500
A14: N006 | B14: B100201 | C14: 银行存款/人民币 | D14: R02 | E14: 中国银行 | G14: 500 | H14: 人民币 | I14: 2007-08-20 | J14: 银行存款 | K14: 人民币/中国银行 | L14: 500
A15: N002 | B15: B212102 | C15: 应付账款/C企业 | D15: R04 | E15: C企业 | F15: 8000 | H15: C企业 | I15: 2007-08-21 | J15: 应付账款 | K15: C企业 | L15: -8000
A16: N003 | B16: B550201 | C16: 管理费用/办公费 | D16: R01 | E16: 库贷 | F16: 500 | H16: 办公费 | I16: 2007-08-22 | J16: 管理费用 | K16: 办公费 | L16: -500
A17: N003 | B17: B100203 | C17: 银行存款/人民币 | D17: R02 | E17: 中国银行 | G17: 500 | H17: 人民币 | I17: 2007-08-25 | J17: 银行存款 | K17: 人民币/中国银行 | L17: 500
A18: N004 | B18: B100101 | C18: 现金/人民币 | D18: 无代码 | G18: 220 | H18: 人民币 | I18: 2007-08-26 | J18: 现金 | K18: 人民币 | L18: 220
A19: N006 | B19: B100204 | C19: 银行存款/人民币 | D19: R03 | E19: 建设银行 | F19: 1500 | H19: 人民币 | I19: 2007-08-27 | J19: 银行存款 | K19: 人民币/建设银行 | L19: -1500
A20: N006 | B20: B212101 | C20: 应付账款/A企业 | D20: R05 | E20: A企业 | G20: 1500 | H20: A企业 | I20: 2007-08-29 | J20: 应收账款 | K20: A企业 | L20: 1500
A21: N007 | B21: B550204 | C21: 管理费用/水电费 | D21: R01 | E21: 库贷 | F21: 300 | H21: 水电费 | I21: 2007-08-30 | J21: 管理费用 | K21: 水电费 | L21: -300
A22: N007 | B22: B100101 | C22: 现金/人民币 | D22: 无代码 | G22: 300 | H22: 人民币 | I22: 2007-08-31 | J22: 现金 | K22: 人民币 | L22: 300

Sheet 明细科目汇总表1
A1: 明细科目汇总表
A2: 代码 | B2: 科目名称 | C2: 期初余额 | D2: 借方 | E2: 贷方 | F2: 期末余额
A3: A1001* | B3: 现金 | F3: 7500
A4: B100101 | B4: 现金/人民币 | F4: 2000
A5: B100102 | B5: 现金/外币户 | F5: 3200
A6: A1002* | B6: 银行存款 | F6: 15100
A7: B100201 | B7: 银行存款/人民币/中国银行 | F7: 5000
A8: B100202 | B8: 银行存款/人民币/中国工商银行 | F8: 700
A9: B100203 | B9: 银行存款/人民币/中国农业银行 | F9: 650
A10: B100204 | B10: 银行存款/人民币/中国建设银行 | F10: 1200
A11: A5502* | B11: 管理费用 | F11: 2000
A12: B550201 | B12: 管理费用/办公费 | F12: 100
A13: B550202 | B13: 管理费用/邮寄费 | F13: 200
A14: B550203 | B14: 管理费用/水电费 | F14: 1400
A15: A2121* | B15: 应付账款 | F15: 2100
A16: B212101 | B16: 应付账款/A企业 | F16: 850
A17: B212102 | B17: 应付账款/C企业 | F17: 1450

Sheet 明细科目汇总表
A1: 明细科目汇总表
A2: 代码 | B2: 科目名称 | C2: 期初余额 | D2: 借方 | E2: 贷方 | F2: 期末余额
A3: A1001* | B3: 现金 | C3: =明细科目汇总表1!F3 -> 7500 | D3: =D4+D5 -> 0 | E3: =E4+E5 -> 1040 | F3: =IF(OR(MID(A3,1,1) ="1",MID(A3,1,1)="4"),C3+D3-E3,C3+E3-D3) -> 8540
A4: B100101 | B4: 现金/人民币 | C4: 2000 | D4: =SUMIF(代码,A4,借方) -> 0 | E4: =SUMIF(代码,A4,贷方) -> 1040 | F4: =IF(OR(MID(A4,1,1) ="1",MID(A4,1,1)="4"),C4+D4-E4,C4+E4-D4) -> 3040
A5: B100102 | B5: 现金/外币户 | C5: 3200 | D5: =SUMIF(代码,A5,借方) -> 0 | E5: =SUMIF(代码,A5,贷方) -> 0 | F5: 3200
A6: A1002* | B6: 银行存款 | C6: 15100 | D6: =D7+D8+D9+D10 -> 3000 | E6: =E7+E8+E9+E10 -> 3100 | F6: 15200
A7: B100201 | B7: 银行存款/人民币/中国银行 | C7: 5000 | D7: =SUMIF(代码,A7,借方) -> 0 | E7: =SUMIF(代码,A7,贷方) -> 600 | F7: 5600
A8: B100202 | B8: 银行存款/人民币/中国工商银行 | C8: 700 | D8: =SUMIF(代码,A8,借方) -> 0 | E8: =SUMIF(代码,A8,贷方) -> 0 | F8: 700
A9: B100203 | B9: 银行存款/人民币/中国农业银行 | C9: 650 | D9: =SUMIF(代码,A9,借方) -> 0 | E9: =SUMIF(代码,A9,贷方) -> 2500 | F9: 3150
A10: B100204 | B10: 银行存款/人民币/中国建设银行 | C10: 1200 | D10: =SUMIF(代码,A10,借方) -> 3000 | E10: =SUMIF(代码,A10,贷方) -> 0 | F10: -1800
A11: A5502* | B11: 管理费用 | C11: 2000 | D11: =D12+D13+D14 -> 900 | E11: =E12+E13+E14 -> 0 | F11: 1100
A12: B550201 | B12: 管理费用/办公费 | C12: 100 | D12: =SUMIF(代码,A12,借方) -> 600 | E12: =SUMIF(代码,A12,贷方) -> 0 | F12: -500
A13: B550202 | B13: 管理费用/邮寄费 | C13: 200 | D13: =SUMIF(代码,A13,借方) -> 300 | E13: =SUMIF(代码,A13,贷方) -> 0 | F13: -100
A14: B550203 | B14: 管理费用/水电费 | C14: 1400 | D14: =SUMIF(代码,A14,借方) -> 0 | E14: =SUMIF(代码,A14,贷方) -> 0 | F14: 1400
A15: A2121* | B15: 应付账款 | C15: 2100 | D15: =D16+D17 -> 10000 | E15: =E16+E17 -> 3000 | F15: -4900
A16: B212101 | B16: 应付账款/A企业 | C16: 850 | D16: =SUMIF(代码,A16,借方) -> 0 | E16: =SUMIF(代码,A16,贷方) -> 3000 | F16: 3850
A17: B212102 | B17: 应付账款/C企业 | C17: 1450 | D17: =SUMIF(代码,A17,借方) -> 10000 | E17: =SUMIF(代码,A17,贷方) -> 0 | F17: -8550

Sheet Sheet2

Sheet Sheet3
